fUSD/lending_fUSD_20250704
["ID","MTS","AMOUNT","RATE_DAILY","PERIOD"]
[369472238,1751588709865,34468.86725474,0.00014,2]
[369472239,1751588709890,19880.47643572,0.00014,2]
[369472245,1751588939720,153.7,0.00013699,2]
[369472257,1751589031635,-1081.0,0.0001885,2]
[369472258,1751589031645,-208.0,0.00019,2]
[369472259,1751589031654,-330.62,0.00019,2]
[369472260,1751589031664,-543.0,0.00019049,2]
[369472261,1751589031674,-150.0,0.00019171,2]
[369472262,1751589031683,-208.0,0.0001927,2]
[369472263,1751589031693,-208.0,0.0001954,2]
[369472264,1751589031703,-485.485,0.00019721,2]
[369472265,1751589031712,-1081.0,0.00019792,2]
[369472266,1751589031722,-208.0,0.0001982,2]
[369472267,1751589031732,-168.0,0.00019835,2]
[369472268,1751589031741,-300.0,0.00019845,2]
[369472269,1751589031751,-1200.0,0.00019845,2]
[369472270,1751589031761,-1870.77288738,0.00019846,2]
[369472271,1751589031789,-5818.87711262,0.00019846,2]
[369472272,1751589031799,-200.0,0.00019884,7]
[369472273,1751589031808,-623.17721739,0.000199,2]
[369472274,1751589031817,-168.0,0.00019902,2]
[369472275,1751589031826,-23880.0,0.00019974,2]
[369472276,1751589031836,-352.86790779,0.00019978,2]
[369472277,1751589031845,-536.24,0.00019993,2]
[369472278,1751589031855,-150.0,0.00019997,4]
[369472279,1751589031864,-150.0,0.00019997,4]
[369472280,1751589031873,-623.17721737,0.00020038,2]
[369472281,1751589031882,-150.0,0.00020054,2]
[369472282,1751589031892,-208.0,0.0002009,2]
[369472283,1751589031901,-168.0,0.00020144,2]
[369472284,1751589031911,-623.17721737,0.00020176,2]
[369472285,1751589031922,-168.0,0.00020205,2]
[369472286,1751589031933,-167.85,0.0002031,2]
[369472287,1751589031943,-568.21,0.00020314,2]
[369472288,1751589031953,-623.17721737,0.00020314,3]
[369472289,1751589031963,-568.21,0.00020319,2]
[369472291,1751589031972,-223.0,0.00020324,2]
[369472293,1751589031982,-568.21,0.00020324,2]
[369472295,1751589031991,-223.0,0.00020329,2]
[369472297,1751589032000,-168.0,0.00020329,2]
[369472299,1751589032010,-568.21,0.0002033,2]
[369472301,1751589032019,-568.21,0.00020335,2]
[369472303,1751589032028,-568.21,0.0002034,2]
[369472305,1751589032037,-568.21,0.00020346,2]
[369472307,1751589032046,-568.21,0.00020351,2]
[369472309,1751589032056,-568.21,0.00020356,2]
[369472311,1751589032065,-208.0,0.0002036,2]
[369472314,1751589032075,-568.21,0.00020362,2]
[369472317,1751589032084,-568.21,0.00020367,2]
[369472320,1751589032093,-568.21,0.00020372,2]
[369472323,1751589032103,-568.21,0.00020378,2]
[369472325,1751589032112,-568.21,0.00020383,2]
[369472327,1751589032121,-568.21,0.00020388,2]
[369472329,1751589032130,-568.21,0.00020394,2]
[369472331,1751589032139,-568.21,0.00020399,2]
[369472333,1751589032148,-568.21,0.00020405,2]
[369472335,1751589032158,-223.0,0.00020409,2]
[369472337,1751589032167,-568.21,0.0002041,2]
[369472339,1751589032177,-568.21,0.00020415,2]
[369472341,1751589032187,-623.17721737,0.00020452,3]
[369472343,1751589032196,-150.0,0.00020508,2]
[369472344,1751589032205,-1141.91255731,0.00020529,2]
[369472346,1751589032216,-1141.91255732,0.00020529,2]
[369472348,1751589032227,-150.0,0.00020569,2]
[369472350,1751589032236,-623.17721737,0.0002059,3]
[369472352,1751589032246,-208.0,0.0002063,2]
[369472355,1751589032255,-623.17721737,0.00020728,3]
[369472357,1751589032265,-1081.0,0.00020782,2]
[369472359,1751589032275,-623.17721737,0.00020866,4]
[369472361,1751589032285,-208.0,0.000209,2]
[369472363,1751589032295,-1000.0,0.00020941,2]
[369472364,1751589032304,-1000.0,0.00020941,2]
[369472366,1751589032314,-1000.0,0.00020941,2]
[369472369,1751589032324,-272.59601641,0.00020941,2]
[369472371,1751589032334,-500.0,0.00020941,2]
[369472372,1751589032343,-500.0,0.00020941,2]
[369472374,1751589032353,-300.0,0.00020941,2]
[369472377,1751589032362,-300.0,0.00020941,2]
[369472378,1751589032372,-300.0,0.00020941,2]
[369472380,1751589032381,-207.4,0.00020941,2]
[369472383,1751589032390,-160.0,0.00020941,2]
[369472385,1751589032400,-500.0,0.00020941,2]
[369472387,1751589032410,-500.0,0.00020941,2]
[369472388,1751589032419,-500.0,0.00020941,2]
[369472391,1751589032428,-1000.0,0.00020952,2]
[369472392,1751589032438,-330.62,0.00021,2]
[369472394,1751589032447,-623.17721737,0.00021003,4]
[369472396,1751589032456,-150.0,0.00021045,2]
[369472399,1751589032466,-2110.0,0.00021136,2]
[369472401,1751589032477,-623.17721737,0.00021141,4]
[369472403,1751589032486,-208.0,0.0002117,2]
[369472405,1751589032496,-623.17721737,0.00021279,5]
[369472407,1751589032506,-150.0,0.00021331,2]
[369472408,1751589032516,-150.0,0.00021363,2]
[369472409,1751589032526,-800.12,0.00021367,2]
[369472410,1751589032535,-926.18,0.00021367,2]
[369472411,1751589032545,-623.17721737,0.00021417,5]
[369472412,1751589032555,-398.3188485,0.00021421,2]
[369472413,1751589032564,-223.0,0.00021426,2]
[369472414,1751589032575,-208.0,0.0002144,2]
[369472415,1751589032584,-150.0,0.00021469,2]
[369472416,1751589032594,-302.0,0.00021489,2]
[369472417,1751589032603,-196.39286248,0.00021551,2]
[369472418,1751589032612,-623.17721737,0.00021555,5]
[369472419,1751589032622,-167.3426371,0.00021562,30]
[369472420,1751589032632,-167.11,0.0002158,2]
[369472421,1751589032641,-223.0,0.00021593,2]
[369472422,1751589032651,-420.0,0.00021613,2]
[369472423,1751589032661,-2110.0,0.00021636,2]
[369472424,1751589032670,-623.17721737,0.00021693,5]
[369472426,1751589032679,-208.0,0.0002171,2]
[369472428,1751589032688,-150.53727837,0.0002171,2]
[369472430,1751589032697,-2090.1834,0.00021717,2]
[369472432,1751589032707,-1680.0,0.00021717,2]
[369472434,1751589032716,-3000.0,0.000218,3]
[369472436,1751589032725,-4991.07111,0.000218,2]
[369472438,1751589032735,-167.3426371,0.00021808,30]
[369472440,1751589032744,-94.52563379,0.00021817,3]
[369472442,1751589032756,-50407.834,0.00021817,3]
[369472445,1751589032775,-1546.16219571,0.00021817,3]
[369472447,1751589032786,-2991.68320429,0.00021817,3]
[369472676,1751589037660,-8383.99786621,0.00021817,3]
[369472677,1751589037671,-191.22985339,0.00021817,2]
[369472678,1751589037682,-341.23775467,0.00021817,2]
[369472679,1751589037692,-172.72908966,0.00021817,2]
[369472680,1751589037702,-150.2019978,0.00021817,2]
[369472681,1751589037712,-150.20199768,0.00021826,2]
[369472682,1751589037723,-623.17721737,0.00021831,6]
[369472683,1751589037734,-150.20199768,0.00021835,2]
[369472684,1751589037743,-341.23775462,0.00021841,2]
[369472685,1751589037753,-150.0,0.00021843,2]
[369472686,1751589037765,-150.20199768,0.00021845,2]
[369472687,1751589037775,-150.20199768,0.00021854,2]
[369472688,1751589037785,-150.20199768,0.00021863,2]
[369472689,1751589037794,-341.23775462,0.00021866,2]
[369472690,1751589037803,-150.0,0.00021871,2]
[369472691,1751589037813,-150.0,0.00021882,2]
[369472692,1751589037822,-341.23775462,0.0002189,2]
[369472693,1751589037831,-1013.0,0.000219,2]
[369472694,1751589037840,-287.17,0.00021907,2]
[369472695,1751589037849,-341.23775462,0.00021914,2]
[369472696,1751589037858,-202.12028748,0.00021917,2]
[369472697,1751589037868,-403.57935116,0.00021917,2]
[369472698,1751589037877,-540.36,0.00021917,2]
[369472699,1751589037886,-1158.394881,0.00021917,4]
[369472700,1751589037895,-460.0,0.00021917,2]
[369472701,1751589037905,-490.0,0.00021917,2]
[369472702,1751589037914,-460.0,0.00021917,2]
[369472703,1751589037923,-536.38,0.00021917,2]
[369472704,1751589037935,-460.0,0.00021917,2]
[369472706,1751589037944,-226.28307701,0.00021917,2]
[369472710,1751589037975,-233.71692299,0.00021917,2]
[369472712,1751589037984,-490.0,0.00021917,2]
[369472714,1751589037993,-460.0,0.00021917,2]
[369472716,1751589038002,-228.70541749,0.00021917,2]
[369472721,1751589038032,-135.64658556,0.00021917,2]
[369472724,1751589038041,-460.0,0.00021917,2]
[369472726,1751589038050,-460.0,0.00021917,2]
[369472728,1751589038059,-568.4344649,0.00021917,2]
[369472730,1751589038068,-491.342466,0.00021917,2]
[369472732,1751589038077,-210.0,0.00021917,2]
[369472734,1751589038086,-196.85176538,0.00021917,2]
[369472919,1751589039891,-263.14823462,0.00021917,2]
[369472921,1751589039901,-570.0,0.00021917,2]
[369472923,1751589039910,-460.0,0.00021917,2]
[369472925,1751589039919,-460.0,0.00021917,2]
[369472927,1751589039930,-340.4270284,0.00021917,2]
[369472930,1751589039942,-460.0,0.00021917,2]
[369472931,1751589039951,-460.0,0.00021917,2]
[369472933,1751589039960,-460.0,0.00021917,2]
[369472934,1751589039969,-460.0,0.00021917,2]
[369472935,1751589039978,-460.0,0.00021917,2]
[369472936,1751589039987,-490.0,0.00021917,2]
[369472937,1751589039995,-502.97,0.00021917,2]
[369472938,1751589040004,-150.0,0.00021917,2]
[369472939,1751589040013,-460.0,0.00021917,2]
[369472940,1751589040022,-490.0,0.00021917,2]
[369472941,1751589040032,-460.0,0.00021917,2]
[369472942,1751589040041,-460.0,0.00021917,2]
[369472943,1751589040050,-460.0,0.00021917,2]
[369472944,1751589040059,-460.0,0.00021917,2]
[369472945,1751589040067,-460.0,0.00021917,2]
[369472946,1751589040076,-460.0,0.00021917,2]
[369472947,1751589040085,-460.0,0.00021917,2]
[369472949,1751589040095,-460.0,0.00021917,2]
[369472951,1751589040104,-460.0,0.00021917,2]
[369472953,1751589040112,-580.84,0.00021917,2]
[369472955,1751589040121,-460.0,0.00021917,2]
[369472957,1751589040130,-490.0,0.00021917,2]
[369472959,1751589040140,-501.8150606,0.00021917,2]
[369472961,1751589040149,-460.0,0.00021917,2]
[369472963,1751589040158,-490.0,0.00021917,2]
[369472965,1751589040168,-460.0,0.00021917,2]
[369472967,1751589040177,-460.0,0.00021917,2]
[369472969,1751589040187,-460.0,0.00021917,2]
[369472971,1751589040197,-460.0,0.00021917,2]
[369472973,1751589040207,-245.70185156,0.00021917,2]
[369472975,1751589040216,-750.17,0.00021917,2]
[369472977,1751589040226,-460.0,0.00021917,2]
[369472979,1751589040235,-566.84,0.00021917,2]
[369472981,1751589040244,-318.67936011,0.00021917,2]
[369472983,1751589040253,-460.0,0.00021917,2]
[369472985,1751589040263,-580.0,0.00021917,2]
[369472987,1751589040271,-460.0,0.00021917,2]
[369472989,1751589040281,-460.0,0.00021917,2]
[369472991,1751589040289,-250.0,0.00021917,2]
[369472993,1751589040298,-460.0,0.00021917,2]
[369472995,1751589040308,-640.52,0.00021917,2]
[369472997,1751589040317,-460.0,0.00021917,2]
[369472998,1751589040326,-460.0,0.00021917,2]
[369473000,1751589040336,-490.0,0.00021917,2]
[369473003,1751589040345,-631.3,0.00021917,2]
[369473004,1751589040355,-462.75773272,0.00021917,2]
[369473006,1751589040364,-490.0,0.00021917,2]
[369473009,1751589040373,-460.0,0.00021917,2]
[369473010,1751589040383,-490.0,0.00021917,2]
[369473012,1751589040392,-460.0,0.00021917,2]
[369473014,1751589040402,-490.0,0.00021917,2]
[369473016,1751589040411,-460.0,0.00021917,2]
[369473018,1751589040422,-520.0,0.00021917,2]
[369473021,1751589040432,-490.0,0.00021917,2]
[369473023,1751589040442,-490.0,0.00021917,2]
[369473025,1751589040452,-460.0,0.00021917,2]
[369473027,1751589040462,-490.0,0.00021917,2]
[369473029,1751589040474,-460.0,0.00021917,2]
[369473031,1751589040483,-784.23,0.00021917,2]
[369473032,1751589040492,-460.0,0.00021917,2]
[369473034,1751589040501,-460.0,0.00021917,2]
[369473036,1751589040511,-460.0,0.00021917,2]
[369473038,1751589040524,-460.0,0.00021917,2]
[369473041,1751589040535,-460.0,0.00021917,2]
[369473043,1751589040545,-460.0,0.00021917,2]
[369473045,1751589040554,-859.7,0.00021917,2]
[369473046,1751589040563,-460.0,0.00021917,2]
[369473048,1751589040573,-511.59,0.00021917,2]
[369473050,1751589040582,-460.0,0.00021917,2]
[369473052,1751589040591,-460.0,0.00021917,2]
[369473054,1751589040600,-520.0,0.00021917,2]
[369473056,1751589040609,-460.0,0.00021917,2]
[369473071,1751589040711,-460.0,0.00021917,2]
[369473076,1751589040771,-673.35,0.00021917,2]
[369473078,1751589040781,-460.0,0.00021917,2]
[369473080,1751589040790,-590.57,0.00021917,2]
[369473082,1751589040800,-460.0,0.00021917,2]
[369473084,1751589040810,-460.0,0.00021917,2]
[369473086,1751589040819,-460.0,0.00021917,2]
[369473088,1751589040828,-460.0,0.00021917,2]
[369473089,1751589040837,-490.0,0.00021917,2]
[369473091,1751589040846,-460.0,0.00021917,2]
[369473093,1751589040855,-460.0,0.00021917,2]
[369473095,1751589040864,-460.0,0.00021917,2]
[369473097,1751589040874,-673.22,0.00021917,2]
[369473099,1751589040883,-715.47,0.00021917,2]
[369473101,1751589040892,-460.0,0.00021917,2]
[369473103,1751589040901,-893.54,0.00021917,2]
[369473105,1751589040910,-460.0,0.00021917,2]
[369473107,1751589040919,-460.0,0.00021917,2]
[369473109,1751589040928,-684.68,0.00021917,2]
[369473111,1751589040941,-550.0,0.00021917,2]
[369473113,1751589040950,-228.28421345,0.00021917,2]
[369473115,1751589040959,-495.168287,0.00021917,2]
[369473117,1751589040968,-1338.65,0.00021917,2]
[369473119,1751589040978,-863.73,0.00021917,2]
[369473121,1751589040987,-460.0,0.00021917,2]
[369473123,1751589040996,-460.0,0.00021917,2]
[369473125,1751589041006,-501.86,0.00021917,2]
[369473127,1751589041015,-460.0,0.00021917,2]
[369473129,1751589041025,-460.0,0.00021917,2]
[369473132,1751589041035,-738.72,0.00021917,2]
[369473134,1751589041046,-460.0,0.00021917,2]
[369473136,1751589041055,-194.86429773,0.00021917,2]
[369473138,1751589041065,-460.0,0.00021917,2]
[369473140,1751589041074,-460.0,0.00021917,2]
[369473142,1751589041083,-460.0,0.00021917,2]
[369473144,1751589041092,-460.0,0.00021917,2]
[369473146,1751589041101,-2620.31,0.00021917,2]
[369473148,1751589041110,-460.0,0.00021917,2]
[369473150,1751589041119,-460.0,0.00021917,2]
[369473152,1751589041128,-460.0,0.00021917,2]
[369473154,1751589041137,-460.0,0.00021917,2]
[369473156,1751589041146,-460.0,0.00021917,2]
[369473158,1751589041155,-460.0,0.00021917,2]
[369473159,1751589041164,-460.0,0.00021917,2]
[369473161,1751589041173,-799.91,0.00021917,2]
[369473163,1751589041183,-555.45,0.00021917,2]
[369473165,1751589041192,-460.0,0.00021917,2]
[369473167,1751589041201,-460.0,0.00021917,2]
[369473169,1751589041211,-328.0638736,0.00021917,2]
[369473171,1751589041220,-460.0,0.00021917,2]
[369473173,1751589041229,-500.0,0.00021917,2]
[369473175,1751589041238,-500.0,0.00021917,2]
[369473177,1751589041247,-500.0,0.00021917,2]
[369473179,1751589041256,-500.0,0.00021917,2]
[369473181,1751589041266,-460.0,0.00021917,2]
[369473183,1751589041274,-460.0,0.00021917,2]
[369473185,1751589041283,-460.0,0.00021917,2]
[369473187,1751589041292,-518.44,0.00021917,2]
[369473189,1751589041301,-957.27,0.00021917,2]
[369473191,1751589041310,-627.94,0.00021917,2]
[369473193,1751589041319,-460.0,0.00021917,2]
[369473195,1751589041328,-460.0,0.00021917,2]
[369473197,1751589041337,-456.10318052,0.00021917,2]
[369473199,1751589041347,-460.85708466,0.00021917,2]
[369473201,1751589041356,-460.0,0.00021917,2]
[369473203,1751589041365,-460.0,0.00021917,2]
[369473205,1751589041374,-1654.97,0.00021917,2]
[369473207,1751589041383,-454.69159354,0.00021917,2]
[369473209,1751589041392,-460.0,0.00021917,2]
[369473211,1751589041401,-460.0,0.00021917,2]
[369473213,1751589041410,-1012.85,0.00021917,2]
[369473215,1751589041419,-460.0,0.00021917,2]
[369473217,1751589041428,-460.0,0.00021917,2]
[369473219,1751589041437,-460.0,0.00021917,2]
[369473221,1751589041446,-460.0,0.00021917,2]
[369473223,1751589041455,-490.0,0.00021917,2]
[369473225,1751589041464,-460.0,0.00021917,2]
[369473227,1751589041473,-653.96,0.00021917,2]
[369473229,1751589041482,-460.0,0.00021917,2]
[369473231,1751589041491,-1523.77,0.00021917,2]
[369473233,1751589041500,-460.0,0.00021917,2]
[369473234,1751589041509,-460.0,0.00021917,2]
[369473236,1751589041518,-460.0,0.00021917,2]
[369473238,1751589041527,-2231.42,0.00021917,2]
[369473240,1751589041536,-460.0,0.00021917,2]
[369473242,1751589041545,-460.0,0.00021917,2]
[369473244,1751589041554,-460.0,0.00021917,2]
[369473246,1751589041563,-460.0,0.00021917,2]
[369473248,1751589041572,-460.0,0.00021917,2]
[369473250,1751589041582,-661.38,0.00021917,2]
[369473252,1751589041591,-490.0,0.00021917,2]
[369473254,1751589041600,-460.0,0.00021917,2]
[369473256,1751589041609,-500.0,0.00021917,2]
[369473258,1751589041619,-890.49,0.00021917,2]
[369473260,1751589041628,-490.0,0.00021917,2]
[369473262,1751589041637,-460.0,0.00021917,2]
[369473264,1751589041645,-460.0,0.00021917,2]
[369473266,1751589041655,-460.0,0.00021917,2]
[369473268,1751589041664,-478.44,0.00021917,2]
[369473270,1751589041673,-460.0,0.00021917,2]
[369473272,1751589041683,-515.43,0.00021917,2]
[369473274,1751589041692,-460.0,0.00021917,2]
[369473276,1751589041701,-803.88,0.00021917,2]
[369473278,1751589041710,-460.0,0.00021917,2]
[369473280,1751589041719,-785.9,0.00021917,2]
[369473282,1751589041728,-574.81,0.00021917,2]
[369473284,1751589041737,-460.0,0.00021917,2]
[369473286,1751589041747,-460.0,0.00021917,2]
[369473288,1751589041756,-460.0,0.00021917,2]
[369473290,1751589041765,-460.0,0.00021917,2]
[369473292,1751589041774,-460.0,0.00021917,2]
[369473294,1751589041783,-648.89,0.00021917,2]
[369473296,1751589041792,-1103.01,0.00021917,2]
[369473298,1751589041801,-614.98,0.00021917,2]
[369473300,1751589041810,-495.06,0.00021917,2]
[369473302,1751589041819,-460.0,0.00021917,2]
[369473304,1751589041828,-490.0,0.00021917,2]
[369473306,1751589041837,-460.0,0.00021917,2]
[369473308,1751589041847,-460.0,0.00021917,2]
[369473310,1751589041857,-741.27,0.00021917,2]
[369473312,1751589041866,-508.53,0.00021917,2]
[369473314,1751589041875,-603.59827537,0.00021917,2]
[369473316,1751589041884,-1030.89,0.00021917,2]
[369473318,1751589041893,-460.0,0.00021917,2]
[369473320,1751589041903,-460.0,0.00021917,2]
[369473322,1751589041911,-460.0,0.00021917,2]
[369473324,1751589041920,-851.22,0.00021917,2]
[369473326,1751589041930,-1175.17,0.00021917,2]
[369473328,1751589041941,-1331.58,0.00021917,2]
[369473330,1751589041950,-460.0,0.00021917,2]
[369473332,1751589041959,-460.0,0.00021917,2]
[369473334,1751589041968,-460.0,0.00021917,2]
[369473336,1751589041977,-491.23,0.00021917,2]
[369473338,1751589041986,-524.92427034,0.00021917,2]
[369473340,1751589041996,-460.0,0.00021917,2]
[369473342,1751589042005,-460.0,0.00021917,2]
[369473344,1751589042014,-1467.32,0.00021917,2]
[369473346,1751589042023,-2470.23,0.00021917,2]
[369473348,1751589042032,-460.0,0.00021917,2]
[369473350,1751589042041,-460.0,0.00021917,2]
[369473352,1751589042050,-460.0,0.00021917,2]
[369473354,1751589042060,-1225.51,0.00021917,2]
[369473356,1751589042069,-460.0,0.00021917,2]
[369473358,1751589042078,-1537.41,0.00021917,2]
[369473360,1751589042087,-460.0,0.00021917,2]
[369473362,1751589042097,-460.0,0.00021917,2]
[369473364,1751589042106,-1434.34,0.00021917,2]
[369473366,1751589042115,-460.0,0.00021917,2]
[369473368,1751589042124,-701.84,0.00021917,2]
[369473370,1751589042133,-460.0,0.00021917,2]
[369473372,1751589042142,-460.0,0.00021917,2]
[369473374,1751589042151,-576.31,0.00021917,2]
[369473375,1751589042161,-460.0,0.00021917,2]
[369473378,1751589042170,-347.74139416,0.00021917,2]
[369473379,1751589042181,-153.12347731,0.00021917,2]
[369473381,1751589042191,-1014.47,0.00021917,2]
[369473382,1751589042200,-460.0,0.00021917,2]
[369473383,1751589042210,-760.37,0.00021917,2]
[369473384,1751589042219,-671.53,0.00021917,2]
[369473385,1751589042228,-460.0,0.00021917,2]
[369473386,1751589042238,-460.0,0.00021917,2]
[369473387,1751589042247,-490.0,0.00021917,2]
[369473388,1751589042257,-1079.66,0.00021917,2]
[369473389,1751589042266,-512.37,0.00021917,2]
[369473390,1751589042275,-500.0,0.00021917,2]
[369473391,1751589042284,-500.0,0.00021917,2]
[369473392,1751589042294,-500.0,0.00021917,2]
[369473394,1751589042303,-460.0,0.00021917,2]
[369473396,1751589042313,-500.0,0.00021917,2]
[369473398,1751589042323,-500.0,0.00021917,2]
[369473400,1751589042332,-460.0,0.00021917,2]
[369473402,1751589042342,-460.0,0.00021917,2]
[369473404,1751589042351,-460.0,0.00021917,2]
[369473405,1751589042361,-1296.35,0.00021917,2]
[369473408,1751589042371,-460.0,0.00021917,2]
[369473410,1751589042381,-650.01,0.00021917,2]
[369473412,1751589042391,-460.0,0.00021917,2]
[369473414,1751589042401,-460.0,0.00021917,2]
[369473416,1751589042410,-460.0,0.00021917,2]
[369473418,1751589042420,-627.85,0.00021917,2]
[369473420,1751589042430,-490.0,0.00021917,2]
[369473422,1751589042439,-834.88,0.00021917,2]
[369473424,1751589042449,-1245.65,0.00021917,2]
[369473426,1751589042458,-865.69,0.00021917,2]
[369473428,1751589042468,-460.0,0.00021917,2]
[369473430,1751589042479,-460.0,0.00021917,2]
[369473433,1751589042488,-460.0,0.00021917,2]
[369473436,1751589042499,-460.0,0.00021917,2]
[369473438,1751589042508,-460.0,0.00021917,2]
[369473439,1751589042518,-460.0,0.00021917,2]
[369473442,1751589042528,-2356.76,0.00021917,2]
[369473444,1751589042538,-460.0,0.00021917,2]
[369473446,1751589042547,-817.35,0.00021917,2]
[369473448,1751589042557,-466.29,0.00021917,2]
[369473450,1751589042566,-460.0,0.00021917,2]
[369473451,1751589042575,-460.0,0.00021917,2]
[369473454,1751589042585,-460.0,0.00021917,2]
[369473456,1751589042595,-587.76,0.00021917,2]
[369473458,1751589042604,-959.36,0.00021917,2]
[369473460,1751589042613,-460.0,0.00021917,2]
[369473462,1751589042623,-1138.92,0.00021917,2]
[369473464,1751589042632,-460.0,0.00021917,2]
[369473468,1751589042643,-1049.83,0.00021917,2]
[369473470,1751589042652,-460.0,0.00021917,2]
[369473472,1751589042662,-460.51,0.00021917,2]
[369473474,1751589042672,-487.07,0.00021917,2]
[369473476,1751589042681,-460.0,0.00021917,2]
[369473478,1751589042691,-460.0,0.00021917,2]
[369473480,1751589042700,-460.0,0.00021917,2]
[369473481,1751589042709,-460.0,0.00021917,2]
[369473484,1751589042719,-460.0,0.00021917,2]
[369473486,1751589042728,-596.93,0.00021917,2]
[369473488,1751589042738,-491.48995344,0.00021917,2]
[369473489,1751589042747,-460.0,0.00021917,2]
[369473492,1751589042759,-460.0,0.00021917,2]
[369473493,1751589042768,-460.0,0.00021917,2]
[369473495,1751589042777,-1023.24,0.00021917,2]
[369473497,1751589042787,-564.35,0.00021917,2]
[369473500,1751589042797,-1045.43,0.00021917,2]
[369473502,1751589042807,-460.0,0.00021917,2]
[369473504,1751589042816,-460.0,0.00021917,2]
[369473506,1751589042826,-712.29,0.00021917,2]
[369473507,1751589042837,-460.0,0.00021917,2]
[369473510,1751589042848,-1325.19,0.00021917,2]
[369473512,1751589042858,-271.0882388,0.00021917,2]
[369473513,1751589042867,-1567.41,0.00021917,2]
[369473516,1751589042877,-615.44,0.00021917,2]
[369473518,1751589042886,-568.66,0.00021917,2]
[369473519,1751589042895,-647.53,0.00021917,2]
[369473522,1751589042905,-1496.06,0.00021917,2]
[369473523,1751589042915,-460.0,0.00021917,2]
[369473526,1751589042925,-906.7,0.00021917,2]
[369473527,1751589042939,-460.0,0.00021917,2]
[369473529,1751589042948,-832.52,0.00021917,2]
[369473531,1751589042957,-550.0,0.00021917,2]
[369473533,1751589042967,-460.0,0.00021917,2]
[369473535,1751589042977,-464.38131777,0.00021917,2]
[369473537,1751589042986,-460.0,0.00021917,2]
[369473539,1751589042996,-578.12,0.00021917,2]
[369473541,1751589043007,-578.12,0.00021917,2]
[369473543,1751589043016,-460.0,0.00021917,2]
[369473545,1751589043025,-578.12,0.00021917,2]
[369473548,1751589043035,-578.12,0.00021917,2]
[369473549,1751589043044,-460.0,0.00021917,2]
[369473551,1751589043053,-1252.3,0.00021917,2]
[369473553,1751589043062,-460.0,0.00021917,2]
[369473555,1751589043072,-1310.25,0.00021917,2]
[369473557,1751589043081,-490.0,0.00021917,2]
[369473559,1751589043091,-608.43,0.00021917,2]
[369473562,1751589043101,-460.0,0.00021917,2]
[369473564,1751589043110,-622.45,0.00021917,2]
[369473566,1751589043119,-490.0,0.00021917,2]
[369473568,1751589043128,-460.0,0.00021917,2]
[369473570,1751589043138,-1489.89,0.00021917,2]
[369473572,1751589043147,-888.11,0.00021917,2]
[369473574,1751589043156,-784.03,0.00021917,2]
[369473575,1751589043165,-460.0,0.00021917,2]
[369473578,1751589043175,-460.0,0.00021917,2]
[369473579,1751589043184,-669.75,0.00021917,2]
[369473582,1751589043193,-460.0,0.00021917,2]
[369473583,1751589043202,-2047.0,0.00021917,2]